fUST/lending_fUST_20260703
["ID","MTS","AMOUNT","RATE_DAILY","PERIOD"]
[426971512,1783087843000,-493.7015164,0.00023544,2]
[426971514,1783087843000,-500.0,0.00024041,2]
[426971500,1783087843000,-1126.56844937,0.00023363,2]
[426971487,1783087843000,-500.0,0.00023362,2]
[426971463,1783087843000,-1416.41572456,0.0002246,2]
[426971489,1783087843000,-500.0,0.00023362,2]
[426971464,1783087843000,-142.62667106,0.00023205,83]
[426971465,1783087843000,-163.818793,0.00023205,92]
[426971513,1783087843000,-239.44301,0.00023836,2]
[426971467,1783087843000,-163.818793,0.00023205,110]
[426971477,1783087843000,-500.0,0.00023362,2]
[426971466,1783087843000,-163.818793,0.00023205,101]
[426971473,1783087843000,-204.75299317,0.00023362,2]
[426971468,1783087843000,-163.818793,0.00023205,119]
[426971470,1783087843000,-500.0,0.00023362,2]
[426971469,1783087843000,-231.97664227,0.00023362,2]
[426971490,1783087843000,-500.0,0.00023362,2]
[426971471,1783087843000,-500.0,0.00023362,2]
[426971474,1783087843000,-500.0,0.00023362,2]
[426971476,1783087843000,-500.0,0.00023362,2]
[426971478,1783087843000,-500.0,0.00023362,2]
[426971480,1783087843000,-500.0,0.00023362,2]
[426971481,1783087843000,-500.0,0.00023362,2]
[426971484,1783087843000,-500.0,0.00023362,2]
[426971483,1783087843000,-500.0,0.00023362,2]
[426971485,1783087843000,-500.0,0.00023362,2]
[426971482,1783087843000,-500.0,0.00023362,2]
[426971488,1783087843000,-420.89131538,0.00023362,2]
[426971472,1783087843000,-500.0,0.00023362,2]
[426971511,1783087843000,-325.940645,0.00023373,2]
[426971475,1783087843000,-500.0,0.00023362,2]
[426971515,1783087843000,-500.0,0.00024042,2]
[426971545,1783087843000,-395.403313,0.00026741,2]
[426971547,1783087843000,-958.57192241,0.00026812,2]
[426971542,1783087843000,-430.639731,0.00026249,7]
[426971548,1783087843000,-270.31011028,0.00026897,2]
[426971539,1783087843000,-430.639731,0.00025499,7]
[426971543,1783087843000,-958.57192241,0.00026264,2]
[426971552,1783087843000,-160.0,0.00026946,2]
[426971553,1783087843000,-500.0,0.00026979,2]
[426971562,1783087843000,-430.639731,0.00026999,7]
[426971566,1783087843000,-781.98,0.0002749,3]
[426971549,1783087843000,-229.68988972,0.00026897,2]
[426971551,1783087843000,-160.0,0.00026946,2]
[426971555,1783087843000,-355.08442871,0.00026985,2]
[426971560,1783087843000,-714.04802347,0.00026985,2]
[426971557,1783087843000,-1108.67823865,0.00026985,2]
[426971561,1783087843000,-370.75922162,0.00026999,7]
[426971556,1783087843000,-241.02462697,0.00026985,2]
[426971559,1783087843000,-702.06344579,0.00026985,2]
[426971565,1783087843000,-1563.97,0.0002749,3]
[426971563,1783087843000,-478.80601162,0.00026999,2]
[426971564,1783087843000,-958.57192241,0.0002736,2]
[426971567,1783087843000,-390.99,0.0002749,3]
[426971558,1783087843000,-240.14071591,0.00026985,2]
[426971544,1783087843000,-252.38541506,0.00026641,2]
[426971554,1783087843000,-500.0,0.0002698,2]
[426971546,1783087843000,-389.05085838,0.00026808,5]
[426971550,1783087843000,-417.15472785,0.00026945,2]
[426971518,1783087843000,-500.0,0.00024211,2]
[426971519,1783087843000,-220.1122027,0.00024316,2]
[426971520,1783087843000,-395.403313,0.00024665,2]
[426971523,1783087843000,-265.47158573,0.00024723,2]
[426971521,1783087843000,-500.0,0.00024723,2]
[426971522,1783087843000,-500.0,0.00024723,2]
[426971524,1783087843000,-500.0,0.00024723,2]
[426971525,1783087843000,-500.0,0.00024723,2]
[426971527,1783087843000,-500.0,0.00024723,2]
[426971537,1783087843000,-430.639731,0.00024999,7]
[426971526,1783087843000,-500.0,0.00024723,2]
[426971516,1783087843000,-151.613,0.00024112,6]
[426971529,1783087843000,-500.0,0.00024723,2]
[426971528,1783087843000,-500.0,0.00024723,2]
[426971530,1783087843000,-500.0,0.00024723,2]
[426971536,1783087843000,-260.63258252,0.00024997,2]
[426971534,1783087843000,-278.97495404,0.00024988,2]
[426971533,1783087843000,-441.90542051,0.00024723,2]
[426971531,1783087843000,-500.0,0.00024723,2]
[426971532,1783087843000,-500.0,0.00024723,2]
[426971535,1783087843000,-289.64705138,0.0002499,2]
[426971538,1783087843000,-247.1728144,0.00025499,7]
[426971541,1783087843000,-958.57192241,0.00025716,2]
[426971540,1783087843000,-395.403313,0.00025703,2]
[426971568,1783087844000,-195.5,0.0002749,3]
[426971572,1783087844000,-4149.79659574,0.000275,2]
[426971573,1783087844000,-419.11025134,0.000275,2]
[426971571,1783087844000,-204.051,0.00027492,2]
[426971570,1783087844000,-363.484,0.00027492,2]
[426971575,1783087844000,-2847.22140352,0.000275,2]
[426971574,1783087844000,-3453.71802853,0.000275,2]
[426971576,1783087844000,-600.0,0.000275,2]
[426971577,1783087844000,-1733.80167428,0.000275,2]
[426971569,1783087844000,-586.52,0.0002749,3]
[426971593,1783087850000,-500.0,0.00024215,2]
[426971594,1783087850000,-4849.08431811,0.000275,2]
[426971617,1783088064000,-185.77,0.00022,2]
[426971621,1783088086000,-174.11,0.00022437,7]
[426971620,1783088086000,-186.17470667,0.00022437,2]
[426971619,1783088086000,-174.11,0.00022323,7]
[426971618,1783088086000,-1.23,0.00022,2]
[426971623,1783088103000,59.43829333,0.00022,2]
[426971624,1783088115000,-127.56170667,0.00022,2]
[426971625,1783088115000,-174.11,0.0002246,7]
[426971627,1783088115000,-52.14139333,0.00023364,2]
[426971626,1783088115000,-187.0,0.00023014,7]
[426971629,1783088139000,-16.226,0.00022437,2]
[426971628,1783088139000,-182.82,0.00022323,7]
[426971632,1783088158000,-178.85881731,0.0002244,7]
[426971631,1783088158000,576.786782,0.0002842,120]
[426971630,1783088158000,-178.85881731,0.00022,7]
[426971633,1783088190000,235.767994,0.0002842,120]
[426971634,1783088197000,162.78353779,0.00022437,2]
[426971635,1783088211000,-182.82,0.0002246,7]
[426971636,1783088230000,583.026748,0.0002842,120]
[426971637,1783088264000,-178.85881731,0.000231,7]
[426971638,1783088318000,-178.85881731,0.0002376,7]
[426971639,1783088371000,-255.96,0.00023363,7]
[426971641,1783088424000,-500.0,0.00024215,2]
[426971642,1783088444000,150.0,0.000137,2]
[426971646,1783088531000,179.17,0.00024078,7]
[426971648,1783088638000,-1936.7119154,0.0002412,2]
[426971649,1783088839000,-151.3990169,0.0002412,2]
[426971653,1783088956000,-348.85548996,0.00024119,2]
[426971652,1783088956000,-522.75033258,0.00024119,2]
[426971651,1783088956000,-500.0,0.00024119,2]
[426971686,1783089032000,-151.14451004,0.00024119,2]
[426971694,1783089032000,-1616.03202398,0.0002412,2]
[426971692,1783089032000,-392.08913154,0.00024119,2]
[426971697,1783089032000,-3732.48197282,0.0002412,2]
[426971690,1783089032000,-500.0,0.00024119,2]
[426971700,1783089032000,-2704.53789848,0.0002412,2]
[426971702,1783089032000,-972.25650986,0.0002412,2]
[426971688,1783089032000,-500.0,0.00024119,2]
[426971835,1783089041000,-162.970323,0.00024242,2]
[426971839,1783089041000,-1056.04120944,0.00024639,2]
[426971840,1783089041000,-297.37700986,0.00024639,2]
[426971841,1783089041000,-758.66419958,0.00024639,2]
[426971831,1783089041000,-239.41414309,0.0002412,2]
[426971833,1783089041000,-37.7800081,0.0002412,2]
[426971842,1783089041000,-326.56210801,0.00024639,2]
[426971837,1783089041000,-929.6775461,0.00024242,2]
[426971918,1783089042000,-500.0,0.00025231,2]
[426971920,1783089042000,-500.0,0.00025231,2]
[426971897,1783089042000,-1056.04120944,0.00024639,2]
[426971899,1783089042000,-1056.04120944,0.00024639,2]
[426971901,1783089042000,-178.85881735,0.0002464,7]
[426971895,1783089042000,-1056.04120944,0.00024639,2]
[426971903,1783089042000,-8690.04851178,0.0002464,2]
[426971882,1783089042000,-1056.04120944,0.00024639,2]
[426971887,1783089042000,-1056.04120944,0.00024639,2]
[426971886,1783089042000,-1056.04120944,0.00024639,2]
[426971889,1783089042000,-1056.04120944,0.00024639,2]
[426971880,1783089042000,-1056.04120944,0.00024639,2]
[426971884,1783089042000,-1056.04120944,0.00024639,2]
[426971891,1783089042000,-1056.04120944,0.00024639,2]
[426971876,1783089042000,-1056.04120944,0.00024639,2]
[426971874,1783089042000,-1056.04120944,0.00024639,2]
[426971872,1783089042000,-729.47910143,0.00024639,2]
[426971878,1783089042000,-1056.04120944,0.00024639,2]
[426971893,1783089042000,-1056.04120944,0.00024639,2]
[426971910,1783089042000,-381.68873116,0.00024988,2]
[426971907,1783089042000,-360.9013607,0.00024988,2]
[426971913,1783089042000,-151.613,0.00025128,9]
[426971924,1783089042000,-156.66,0.00025263,2]
[426971962,1783089042000,-432.25328864,0.00026985,2]
[426971938,1783089042000,-156.96,0.00026373,2]
[426971940,1783089042000,-500.0,0.00026382,2]
[426971932,1783089042000,-151.56,0.00025844,2]
[426971934,1783089042000,-1961.88068188,0.00026077,7]
[426971952,1783089042000,-197.701656,0.0002698,2]
[426971942,1783089042000,-766.85753793,0.00026383,2]
[426971949,1783089042000,-417.15472785,0.00026962,2]
[426971936,1783089042000,-151.72,0.00026082,2]
[426971944,1783089042000,-766.85753793,0.00026931,2]
[426971947,1783089042000,-160.0,0.00026962,2]
[426971909,1783089042000,-334.34962681,0.00024988,2]
[426971926,1783089042000,-196.52,0.00025584,2]
[426971916,1783089042000,-500.0,0.0002523,2]
[426971905,1783089042000,-341.99086089,0.00024988,2]
[426971928,1783089042000,-197.09,0.0002567,2]
[426971930,1783089042000,-766.85753793,0.00025835,2]
[426971922,1783089042000,-8679.6158746,0.00025232,2]
[426972000,1783089043000,-1069.17650832,0.00027013,2]
[426972012,1783089043000,-309.55,0.0002726,9]
[426972010,1783089043000,-166.0,0.00027132,3]
[426972008,1783089043000,-157.4,0.00027118,2]
[426971989,1783089043000,-214.04935102,0.00026985,2]
[426971998,1783089043000,-178.27622046,0.00026985,2]
[426972003,1783089043000,-320.57629963,0.00027013,2]
[426971987,1783089043000,-1199.50287597,0.00026985,2]
[426972006,1783089043000,-156.56,0.00027118,2]
[426971995,1783089043000,-684.95792325,0.00026985,2]
[426971969,1783089043000,-1730.57743815,0.00026985,2]
[426971981,1783089043000,-768.45029091,0.00026985,2]
[426971983,1783089043000,-200.28229414,0.00026985,2]
[426971979,1783089043000,-888.90239549,0.00026985,2]
[426971985,1783089043000,-1981.48326514,0.00026985,2]
[426971965,1783089043000,-1269.4187084,0.00026985,2]
[426971975,1783089043000,-517.12218195,0.00026985,2]
[426971972,1783089043000,-287.29010109,0.00026985,2]
[426971977,1783089043000,-569.46700011,0.00026985,2]
[426971992,1783089043000,-385.28883183,0.00026985,2]
[426972036,1783089043000,-500.0,0.00027499,2]
[426972016,1783089043000,-1036.03323253,0.00027316,3]
[426972103,1783089043000,-2302.0,0.000275,2]
[426972105,1783089043000,-322.24,0.000275,2]
[426972095,1783089043000,-4088.76701597,0.000275,2]
[426972047,1783089043000,-6234.17629877,0.000275,2]
[426972044,1783089043000,-10648.14825359,0.000275,2]
[426972042,1783089043000,-448.38480285,0.00027499,2]
[426972040,1783089043000,-500.0,0.00027499,7]
[426972038,1783089043000,-498.12760575,0.00027499,2]
[426972024,1783089043000,-500.0,0.00027399,7]
[426972014,1783089043000,-300.0,0.0002726,9]
[426972022,1783089043000,-500.0,0.00027399,2]
[426972026,1783089043000,-766.85753793,0.00027479,2]
[426972028,1783089043000,-1134.94,0.0002749,3]
[426972034,1783089043000,-851.23,0.0002749,3]
[426972020,1783089043000,-500.0,0.00027357,2]
[426972030,1783089043000,-567.47,0.0002749,3]
[426972018,1783089043000,-1961.88068188,0.00027323,7]
[426972111,1783089043000,-13.53139451,0.000275,2]
[426972032,1783089043000,-283.73,0.0002749,3]
[426972462,1783089047000,-13733.38922131,0.000275,2]
[426972452,1783089047000,-50360.62496147,0.000275,2]
[426972460,1783089047000,-136.21717172,0.000275,2]
[426972592,1783089073000,281.759847,0.00028667,120]
[426972595,1783089150000,755.069743,0.00028665,120]
[426972596,1783089225000,232.540042,0.00028661,120]
[426972599,1783089333000,48053.6,0.00016,2]
[426972601,1783089394000,635.166301,0.0001,2]
[426972603,1783089684000,321.0,0.00015,2]
[426972608,1783090038000,-151.0,0.00021158,2]
[426972609,1783090038000,-142.27246429,0.00021813,2]
[426972615,1783090117000,10337.14508874,0.00012,2]
[426972619,1783090151000,-8.72753571,0.00021813,2]
[426972618,1783090151000,-151.0,0.00021158,2]
[426972657,1783090232000,-162.9703235,0.00026248,2]
[426972652,1783090232000,-279.7253266,0.00025095,7]
[426972655,1783090232000,-189.179025,0.00025956,2]
[426972661,1783090232000,-267.25534399,0.00026995,2]
[426972654,1783090232000,-312.66322127,0.00025326,7]
[426972659,1783090232000,-250.0,0.00026386,2]
[426972673,1783090232000,-6779.49231665,0.000274,2]
[426972663,1783090232000,-481.05961918,0.00026995,2]
[426972682,1783090232000,-496.57,0.0002749,3]
[426972684,1783090232000,-31126.5821467,0.000275,2]
[426972667,1783090232000,-165.0,0.000274,10]
[426972680,1783090232000,-165.51,0.0002749,3]
[426972676,1783090232000,-662.04,0.0002749,3]
[426972671,1783090232000,-173.18188097,0.000274,2]
[426972674,1783090232000,-163.023,0.0002749,16]
[426972678,1783090232000,-331.02,0.0002749,3]
[426972669,1783090232000,-160.53150597,0.000274,2]
[426972691,1783090232000,-1624.88733256,0.000275,2]
[426972686,1783090232000,-10351.12882878,0.000275,2]
[426972665,1783090232000,-160.0,0.00027398,2]
[426972688,1783090232000,-3526.68244537,0.000275,2]
[426972776,1783090238000,-1482.92306439,0.000275,2]
[426972803,1783090239000,-5426.0560888,0.000275,2]
[426972909,1783090244000,-23.65382972,0.000275,2]
[426973002,1783090247000,-3199.70257509,0.000275,2]
[426973001,1783090247000,-472.89,0.0002749,3]
[426973018,1783090307000,820.52403622,0.00021158,7]
[426973019,1783090308000,389.97950186,0.00021582,7]
[426973025,1783090514000,2925.270876,0.00028471,120]
[426973026,1783090574000,-430.54453436,0.00021582,7]
[426973028,1783090592000,1234.687824,0.0002842,120]
[426973031,1783090627000,-172.2558924,0.00021582,7]
[426973035,1783090680000,-820.52403622,0.00022216,7]
[426973036,1783090734000,-729.47910143,0.00022851,7]
[426973037,1783090744000,-157.74602731,0.00022582,2]
[426973042,1783091102000,-91.04493479,0.00022851,7]
[426973056,1783091131000,-500.0,0.00023898,2]
[426973058,1783091131000,-512.78204939,0.00023898,2]
[426973055,1783091131000,-500.0,0.00023898,2]
[426973053,1783091131000,-500.0,0.00023898,2]
[426973054,1783091131000,-500.0,0.00023898,2]
[426973051,1783091131000,-500.0,0.00023898,2]
[426973052,1783091131000,-500.0,0.00023898,2]
[426973045,1783091131000,-820.52403623,0.00023697,7]
[426973049,1783091131000,-500.0,0.00023898,2]
[426973046,1783091131000,-190.82052768,0.00023798,2]
[426973057,1783091131000,-391.12070984,0.00023898,2]
[426973048,1783091131000,-500.0,0.00023898,2]
[426973047,1783091131000,-190.82052768,0.00023849,2]
[426973044,1783091131000,-187.154702,0.00022999,2]
[426973043,1783091131000,-258.38383861,0.00022851,7]
[426973050,1783091131000,-500.0,0.00023898,2]
[426973060,1783091131000,-500.0,0.00023898,2]
[426973059,1783091131000,-397.58438909,0.00023898,2]
[426973062,1783091131000,-500.0,0.00023898,2]
[426973078,1783091131000,-1215.8259004,0.00023898,2]
[426973061,1783091131000,-500.0,0.00023898,2]
[426973075,1783091131000,-1215.8259004,0.00023898,2]
[426973077,1783091131000,-1215.8259004,0.00023898,2]
[426973073,1783091131000,-1215.8259004,0.00023898,2]
[426973074,1783091131000,-1215.8259004,0.00023898,2]
[426973071,1783091131000,-1215.8259004,0.00023898,2]
[426973072,1783091131000,-1215.8259004,0.00023898,2]
[426973076,1783091131000,-1215.8259004,0.00023898,2]
[426973069,1783091131000,-1215.8259004,0.00023898,2]
[426973066,1783091131000,-1215.8259004,0.00023898,2]
[426973068,1783091131000,-1215.8259004,0.00023898,2]
[426973067,1783091131000,-1215.8259004,0.00023898,2]
[426973065,1783091131000,-403.41769265,0.00023898,2]
[426973063,1783091131000,-500.0,0.00023898,2]
[426973064,1783091131000,-5932.05577706,0.00023898,2]
[426973070,1783091131000,-1215.8259004,0.00023898,2]
[426973090,1783091132000,-1225.55250762,0.00023898,2]
[426973089,1783091132000,-1225.55250762,0.00023898,2]
[426973093,1783091132000,-190.82052768,0.000239,2]
[426973086,1783091132000,-1276.61719542,0.00023898,2]
[426973088,1783091132000,-1225.55250762,0.00023898,2]
[426973082,1783091132000,-1276.61719542,0.00023898,2]
[426973084,1783091132000,-1276.61719542,0.00023898,2]
[426973083,1783091132000,-1276.61719542,0.00023898,2]
[426973079,1783091132000,-1215.8259004,0.00023898,2]
[426973080,1783091132000,-1276.61719542,0.00023898,2]
[426973081,1783091132000,-1276.61719542,0.00023898,2]
[426973085,1783091132000,-1276.61719542,0.00023898,2]
[426973092,1783091132000,-164.42161398,0.00023899,2]
[426973087,1783091132000,-1276.61719542,0.00023898,2]
[426973095,1783091132000,-438.9,0.0002399,3]
[426973094,1783091132000,-682.73,0.0002399,3]
[426973107,1783091132000,-113451.59162191,0.00024,7]
[426973105,1783091132000,-500.0,0.00023999,2]
[426973104,1783091132000,-500.0,0.00023999,2]
[426973101,1783091132000,-498.12760575,0.00023999,2]
[426973103,1783091132000,-500.0,0.00023999,2]
[426973106,1783091132000,-448.38480285,0.00023999,2]
[426973097,1783091132000,-658.38,0.0002399,3]
[426973102,1783091132000,-169.538,0.00023999,5]
[426973096,1783091132000,-219.45,0.0002399,3]
[426973091,1783091132000,-8690.04851178,0.00023899,2]
[426973100,1783091132000,-500.0,0.00023999,2]
[426973099,1783091132000,-500.0,0.00023999,2]
[426973098,1783091132000,-500.0,0.00023999,2]
[426973108,1783091137000,-787.77697208,0.00024,7]
[426973109,1783091140000,13589.4128666,0.000239,120]
[426973119,1783091231000,-1215.8259004,0.00023999,2]
[426973128,1783091231000,-500.0,0.00023999,2]
[426973124,1783091231000,-500.0,0.00023999,2]
[426973125,1783091231000,-500.0,0.00023999,2]
[426973123,1783091231000,-500.0,0.00023999,2]
[426973122,1783091231000,-1215.8259004,0.00023999,2]
[426973120,1783091231000,-1215.8259004,0.00023999,2]
[426973118,1783091231000,-1215.8259004,0.00023999,2]
[426973111,1783091231000,-215.78157496,0.00022661,7]
[426973121,1783091231000,-1215.8259004,0.00023999,2]
[426973116,1783091231000,-1215.8259004,0.00023999,2]
[426973115,1783091231000,-403.41769265,0.00023999,2]
[426973114,1783091231000,-10649.42854406,0.00023999,2]
[426973112,1783091231000,-215.78157496,0.00023327,7]
[426973113,1783091231000,-215.78157496,0.00023994,7]
[426973110,1783091231000,-215.78157496,0.00022216,7]
[426973126,1783091231000,-500.0,0.00023999,2]
[426973117,1783091231000,-1215.8259004,0.00023999,2]
[426973130,1783091231000,-500.0,0.00023999,2]
[426973127,1783091231000,-500.0,0.00023999,2]
[426973132,1783091231000,-391.12070984,0.00023999,2]
[426973150,1783091231000,-1187.505764,0.00024,2]
[426973129,1783091231000,-500.0,0.00023999,2]
[426973148,1783091231000,-1250.56378327,0.00023999,2]
[426973149,1783091231000,-35835.81834031,0.00024,7]
[426973147,1783091231000,-1250.56378327,0.00023999,2]
[426973145,1783091231000,-1250.56378327,0.00023999,2]
[426973144,1783091231000,-1250.56378327,0.00023999,2]
[426973143,1783091231000,-1250.56378327,0.00023999,2]
[426973141,1783091231000,-1215.8259004,0.00023999,2]
[426973142,1783091231000,-1250.56378327,0.00023999,2]
[426973146,1783091231000,-1250.56378327,0.00023999,2]
[426973139,1783091231000,-512.78204939,0.00023999,2]
[426973131,1783091231000,-500.0,0.00023999,2]
[426973140,1783091231000,-1215.8259004,0.00023999,2]
[426973133,1783091231000,-1215.8259004,0.00023999,2]
[426973135,1783091231000,-500.0,0.00023999,2]
[426973134,1783091231000,-500.0,0.00023999,2]
[426973136,1783091231000,-500.0,0.00023999,2]
[426973138,1783091231000,-500.0,0.00023999,2]
[426973137,1783091231000,-397.58438909,0.00023999,2]
[426973162,1783091232000,-438.9,0.0002536,3]
[426973169,1783091232000,-243.21230749,0.00026322,2]
[426973170,1783091232000,-833.68874077,0.00026411,2]
[426973171,1783091232000,-157.00689651,0.00026419,2]
[426973167,1783091232000,-157.00689651,0.00026224,2]
[426973168,1783091232000,-5932.05577704,0.00026247,2]
[426973166,1783091232000,-766.85753793,0.00026124,2]
[426973164,1783091232000,-157.00689651,0.00025833,2]
[426973165,1783091232000,-157.00689651,0.00026028,2]
[426973163,1783091232000,-197.701657,0.00025733,2]
[426973153,1783091232000,-1187.505764,0.00024,2]
[426973160,1783091232000,-1365.46,0.0002536,3]
[426973159,1783091232000,-14903.60372287,0.00025031,2]
[426973157,1783091232000,-360.9013607,0.00024983,2]
[426973158,1783091232000,-381.68873116,0.00024984,2]
[426973156,1783091232000,-341.99086089,0.00024983,2]
[426973155,1783091232000,-334.34962681,0.00024983,2]
[426973154,1783091232000,-215.781575,0.00024882,7]
[426973152,1783091232000,-1187.505764,0.00024,2]
[426973151,1783091232000,-1187.505764,0.00024,2]
[426973173,1783091232000,-1187.505764,0.00026419,2]
[426973161,1783091232000,-877.8,0.0002536,3]
[426973172,1783091232000,-1187.505764,0.00026419,2]
[426973191,1783091232000,-151.0,0.00027341,2]
[426973176,1783091232000,-157.00689651,0.00026614,2]
[426973174,1783091232000,-1187.505764,0.00026419,2]
[426973197,1783091232000,-855.21710076,0.0002739,2]
[426973198,1783091232000,-522.55520744,0.0002739,2]
[426973196,1783091232000,-269.2285136,0.0002739,2]
[426973192,1783091232000,-151.0,0.00027341,2]
[426973193,1783091232000,-233.498487,0.00027341,2]
[426973195,1783091232000,-309.55,0.00027342,9]
[426973190,1783091232000,-766.85753793,0.0002722,2]
[426973189,1783091232000,-157.00689651,0.000272,2]
[426973188,1783091232000,-514.86027648,0.00027116,2]
[426973186,1783091232000,-500.0,0.00027116,2]
[426973194,1783091232000,-300.0,0.00027342,9]
[426973185,1783091232000,-500.0,0.00027116,2]
[426973187,1783091232000,-500.0,0.00027116,2]
[426973177,1783091232000,-766.85753793,0.00026672,2]
[426973179,1783091232000,-197.701657,0.00026816,2]
[426973180,1783091232000,-157.00689651,0.00027005,2]
[426973182,1783091232000,-259.11893548,0.00027075,2]
[426973175,1783091232000,-1187.505764,0.00026419,2]
[426973178,1783091232000,-157.00689651,0.00026809,2]
[426973184,1783091232000,-500.0,0.00027116,2]
[426973183,1783091232000,-500.0,0.00027116,2]
[426973181,1783091232000,-417.15472785,0.00027029,2]
[426973220,1783091233000,-8679.6158746,0.00027417,2]
[426973218,1783091233000,-151.0,0.000274,7]
[426973217,1783091233000,-151.0,0.000274,2]
[426973219,1783091233000,-499.88,0.00027407,3]
[426973216,1783091233000,-151.0,0.000274,7]
[426973215,1783091233000,-300.0,0.000274,2]
[426973213,1783091233000,-151.0,0.000274,7]
[426973214,1783091233000,-151.0,0.000274,7]
[426973212,1783091233000,-1187.505764,0.000274,7]
[426973211,1783091233000,-1187.505764,0.000274,7]
[426973200,1783091233000,-244.86187869,0.0002739,2]
[426973209,1783091233000,-1187.505764,0.000274,7]
[426973208,1783091233000,-151.0,0.000274,7]
[426973207,1783091233000,-33150.0,0.000274,2]
[426973206,1783091233000,-151.0,0.00027398,7]
[426973205,1783091233000,-154.872275,0.00027398,7]
[426973202,1783091233000,-1336.27671994,0.0002739,2]
[426973204,1783091233000,-157.00689651,0.00027395,2]
[426973203,1783091233000,-160.0,0.00027395,2]
[426973201,1783091233000,-440.75138165,0.0002739,2]
[426973199,1783091233000,-307.68972983,0.0002739,2]
[426973210,1783091233000,-1187.505764,0.000274,7]
[426973221,1783091233000,-333.24,0.0002749,3]
[426973233,1783091233000,-1187.505764,0.00027499,7]
[426973223,1783091233000,-151.0,0.00027491,7]
[426973225,1783091233000,-500.0,0.00027498,3]
[426973245,1783091233000,-1187.505756,0.000275,7]
[426973244,1783091233000,-1187.505764,0.000275,7]
[426973243,1783091233000,-1187.505764,0.000275,7]
[426973240,1783091233000,-1036.03323253,0.000275,3]
[426973242,1783091233000,-1187.505764,0.000275,7]
[426973241,1783091233000,-151.0,0.000275,7]
[426973238,1783091233000,-38029.90901784,0.000275,2]
[426973239,1783091233000,-166.0,0.000275,3]
[426973237,1783091233000,-406624.94628493,0.000275,2]
[426973236,1783091233000,-158953.21005124,0.000275,2]
[426973246,1783091233000,-151.0,0.000275,7]
[426973232,1783091233000,-1187.505764,0.00027499,7]
[426973234,1783091233000,-1187.505764,0.00027499,7]
[426973231,1783091233000,-151.0,0.00027499,7]
[426973230,1783091233000,-277.30924133,0.00027499,3]
[426973229,1783091233000,-500.0,0.00027499,3]
[426973228,1783091233000,-500.0,0.00027499,3]
[426973227,1783091233000,-500.0,0.00027499,7]
[426973226,1783091233000,-500.0,0.00027499,7]
[426973224,1783091233000,-500.0,0.00027498,7]
[426973222,1783091233000,-166.62,0.0002749,3]
[426973235,1783091233000,-1187.505764,0.00027499,7]
[426973257,1783091234000,-151.0,0.000275,7]
[426973260,1783091234000,-785.13,0.000275,2]
[426973261,1783091234000,-783.55801182,0.00027569,2]
[426973265,1783091234000,-204.051,0.0002764,2]
[426973264,1783091234000,-167.949,0.0002764,2]
[426973263,1783091234000,-157.00689651,0.00027591,2]
[426973259,1783091234000,-487.0,0.000275,2]
[426973262,1783091234000,-480.76520286,0.00027576,2]
[426973258,1783091234000,-237.841809,0.000275,7]
[426973251,1783091234000,-1000.0,0.000275,2]
[426973254,1783091234000,-151.0,0.000275,2]
[426973255,1783091234000,-1000.0,0.000275,2]
[426973253,1783091234000,-151.0,0.000275,2]
[426973252,1783091234000,-1000.0,0.000275,2]
[426973250,1783091234000,-151.0,0.000275,7]
[426973248,1783091234000,-1589.621002,0.000275,2]
[426973247,1783091234000,-151.0,0.000275,7]
[426973249,1783091234000,-151.0,0.000275,7]
[426973267,1783091234000,-766.85753793,0.00027768,2]
[426973256,1783091234000,-1038.76234251,0.000275,2]
[426973266,1783091234000,-151.0,0.00027735,7]
[426973270,1783091234000,-1924.23847672,0.00027884,2]
[426973269,1783091234000,-3616.5066144,0.00027855,2]